[Event "*** Titled Tuesday 3|2 Blitz"]
[Site "Chess.com"]
[Date "2015.10.06"]
[Round "6"]
[White "EltajSafarli"]
[Black "1stSecond"]
[Result "0-1"]
[WhiteElo "2602"]
[BlackElo "2410"]
[TimeControl "180+2"]
[EndTime "12:14:59 PDT"]
[Termination "1stSecond won by resignation"]

1. e4 {[%clk 0:03:01.9]} 1... e5 {[%clk 0:01:44.1]} 2. Nf3 {[%clk 0:01:46.6]}
2... Nc6 {[%clk 0:01:43]} 3. Bb5 {[%clk 0:01:46.7]} 3... a6 {[%clk 0:01:44.1]}
4. Ba4 {[%clk 0:01:47.9]} 4... Nge7 {[%clk 0:01:45.1]} 5. Nc3 {[%clk 0:01:47.9]}
5... g6 {[%clk 0:01:45]} 6. d4 {[%clk 0:01:48.4]} 6... exd4 {[%clk 0:01:46.3]}
7. Nd5 {[%clk 0:01:49.8]} 7... Bg7 {[%clk 0:01:47.5]} 8. Bg5 {[%clk 0:01:49.9]}
8... h6 {[%clk 0:01:48.7]} 9. Bf6 {[%clk 0:01:51.1]} 9... Kf8 {[%clk 0:01:45.5]}
10. Qd2 {[%clk 0:01:49.3]} 10... Bxf6 {[%clk 0:01:42.2]} 11. Nxf6 {[%clk
0:01:51.2]} 11... Nf5 {[%clk 0:01:43]} 12. Nd5 {[%clk 0:01:50]} 12... Nh4 {[%clk
0:01:39.4]} 13. Nxh4 {[%clk 0:01:42.5]} 13... Qxh4 {[%clk 0:01:39.1]} 14. O-O-O
{[%clk 0:01:44.4]} 14... b5 {[%clk 0:01:33.7]} 15. Bb3 {[%clk 0:01:44.7]} 15...
d6 {[%clk 0:01:18.6]} 16. Nxc7 {[%clk 0:01:44.1]} 16... Ra7 {[%clk 0:01:19.3]}
17. Nd5 {[%clk 0:01:45.3]} 17... Be6 {[%clk 0:01:18.5]} 18. g3 {[%clk
0:01:41.4]} 18... Qxe4 {[%clk 0:01:16.2]} 19. Rhe1 {[%clk 0:01:42.4]} 19... Qf3
{[%clk 0:01:16.3]} 20. Nf4 {[%clk 0:01:36.2]} 20... Bxb3 {[%clk 0:01:16.4]} 21.
axb3 {[%clk 0:01:38.1]} 21... Kg7 {[%clk 0:01:14.8]} 22. Kb1 {[%clk 0:01:36.4]}
22... g5 {[%clk 0:01:11.6]} 23. Nd3 {[%clk 0:01:34.1]} 23... a5 {[%clk
0:01:07.9]} 24. Qe2 {[%clk 0:01:28.8]} 24... Qf6 {[%clk 0:01:02.7]} 25. Qe4
{[%clk 0:01:25.6]} 25... Rc8 {[%clk 0:01:03.4]} 26. f4 {[%clk 0:01:24.2]} 26...
a4 {[%clk 0:00:38.2]} 27. fxg5 {[%clk 0:01:24.3]} 27... hxg5 {[%clk 0:00:38.8]}
28. Rf1 {[%clk 0:01:25.2]} 28... Qe6 {[%clk 0:00:39]} 29. Qf5 {[%clk 0:01:25.4]}
29... Qxf5 {[%clk 0:00:31.8]} 30. Rxf5 {[%clk 0:01:27.3]} 30... axb3 {[%clk
0:00:30.3]} 31. cxb3 {[%clk 0:01:28.7]} 31... f6 {[%clk 0:00:23.3]} 32. Rc1
{[%clk 0:01:26]} 32... Rac7 {[%clk 0:00:21.8]} 33. Rxb5 {[%clk 0:01:26.2]} 33...
Ne5 {[%clk 0:00:22.7]} 34. Rxc7+ {[%clk 0:01:26.7]} 34... Rxc7 {[%clk
0:00:24.6]} 35. Nb4 {[%clk 0:01:26]} 35... Kf7 {[%clk 0:00:23.7]} 36. Rd5 {[%clk
0:01:26.7]} 36... Rb7 {[%clk 0:00:20.5]} 37. Rxd4 {[%clk 0:01:27.2]} 37... Nf3
{[%clk 0:00:21.4]} 38. Rc4 {[%clk 0:01:24.2]} 38... Nd2+ {[%clk 0:00:21.8]} 39.
Kc2 {[%clk 0:01:21.8]} 39... Nxc4 {[%clk 0:00:23.7]} 40. Nc6 {[%clk 0:01:22.5]}
40... Ne3+ {[%clk 0:00:23]} 41. Kd2 {[%clk 0:01:19.7]} 41... Rc7 {[%clk
0:00:21.8]} 42. Nd4 {[%clk 0:01:19.9]} 42... Nf1+ {[%clk 0:00:22.7]} 43. Kd3
{[%clk 0:01:21.5]} 43... Nxh2 {[%clk 0:00:24]} 44. b4 {[%clk 0:01:23.4]} 44...
Nf1 {[%clk 0:00:22.8]} 45. g4 {[%clk 0:01:23.3]} 45... Nh2 {[%clk 0:00:23.6]}
46. b5 {[%clk 0:01:23.6]} 46... Nxg4 {[%clk 0:00:24.1]} 47. Ke4 {[%clk
0:01:23.7]} 47... Ne5 {[%clk 0:00:20.2]} 48. Kd5 {[%clk 0:01:24.6]} 48... Nd3
{[%clk 0:00:19.7]} 49. Kxd6 {[%clk 0:01:25.2]} 49... Rc4 {[%clk 0:00:20.1]} 50.
Nc6 {[%clk 0:01:21]} 50... Ne5 {[%clk 0:00:19.1]} 51. Na5 {[%clk 0:01:19.1]}
51... Rb4 {[%clk 0:00:19.6]} 52. Kc5 {[%clk 0:01:20.6]} 52... Rxb2 {[%clk
0:00:20.7]} 53. b6 {[%clk 0:01:22]} 53... Nd7+ {[%clk 0:00:21.3]} 54. Kd4 {[%clk
0:01:22.3]} 54... Nxb6 {[%clk 0:00:22.6]} 0-1

[Event "*** Titled Tuesday 3|2 Blitz"]
[Site "Chess.com"]
[Date "2015.10.06"]
[Round "6"]
[White "ilmago"]
[Black "stefanodinn"]
[Result "0-1"]
[WhiteElo "1842"]
[BlackElo "2123"]
[TimeControl "180+2"]
[EndTime "12:15:08 PDT"]
[Termination "stefanodinn won by resignation"]

1. e4 {[%clk 0:03:01.9]} 1... c5 {[%clk 0:02:59.9]} 2. Nf3 {[%clk 0:03:01.9]}
2... d6 {[%clk 0:03:00.7]} 3. d4 {[%clk 0:03:02.3]} 3... cxd4 {[%clk 0:03:01.4]}
4. Qxd4 {[%clk 0:03:03.8]} 4... Nf6 {[%clk 0:02:47]} 5. e5 {[%clk 0:03:03]} 5...
Nc6 {[%clk 0:02:47.5]} 6. Bb5 {[%clk 0:03:02.1]} 6... Qa5+ {[%clk 0:02:47.5]} 7.
Nc3 {[%clk 0:03:00.2]} 7... Qxb5 {[%clk 0:02:48.3]} 8. Nxb5 {[%clk 0:02:58.8]}
8... Nxd4 {[%clk 0:02:49.1]} 9. Nbxd4 {[%clk 0:02:51.2]} 9... dxe5 {[%clk
0:02:48.5]} 10. Nxe5 {[%clk 0:02:50.8]} 10... a6 {[%clk 0:02:25.6]} 11. Nc4
{[%clk 0:02:43.6]} 11... Nd5 {[%clk 0:02:21.7]} 12. Bd2 {[%clk 0:02:33.1]} 12...
e6 {[%clk 0:02:21.8]} 13. O-O-O {[%clk 0:02:31.7]} 13... Bc5 {[%clk 0:02:12.8]}
14. Ba5 {[%clk 0:02:29.3]} 14... b5 {[%clk 0:02:00.1]} 15. Ne5 {[%clk
0:02:20.5]} 15... Bb7 {[%clk 0:01:49.7]} 16. Rhf1 {[%clk 0:02:15.6]} 16... Rc8
{[%clk 0:01:39.1]} 17. Nb3 {[%clk 0:02:09.2]} 17... Bd6 {[%clk 0:01:31.1]} 18.
Rfe1 {[%clk 0:02:02.3]} 18... Ke7 {[%clk 0:01:25.4]} 19. Rd3 {[%clk 0:01:58.6]}
19... f6 {[%clk 0:01:12.3]} 20. Nf3 {[%clk 0:01:47.5]} 20... Rhe8 {[%clk
0:01:09.4]} 21. Nbd4 {[%clk 0:01:43.7]} 21... Kf7 {[%clk 0:01:08.4]} 22. Kb1
{[%clk 0:01:28.7]} 22... Bb8 {[%clk 0:00:59.6]} 23. g3 {[%clk 0:01:27.8]} 23...
e5 {[%clk 0:00:57.2]} 24. Nf5 {[%clk 0:01:12.5]} 24... e4 {[%clk 0:00:57.3]} 25.
Rxd5 {[%clk 0:01:05.2]} 25... Bxd5 {[%clk 0:00:55.5]} 26. N3d4 {[%clk
0:01:04.6]} 26... g6 {[%clk 0:00:51.4]} 27. Ne3 {[%clk 0:01:04.1]} 27... Bb7
{[%clk 0:00:50.8]} 28. Bc3 {[%clk 0:01:00]} 28... Ba7 {[%clk 0:00:37.9]} 29. h4
{[%clk 0:00:58.2]} 29... b4 {[%clk 0:00:37.8]} 30. Bxb4 {[%clk 0:00:44.6]} 30...
Bxd4 {[%clk 0:00:38.1]} 31. c3 {[%clk 0:00:45.1]} 31... Bc5 {[%clk 0:00:38.2]}
32. Ba5 {[%clk 0:00:45.5]} 32... Bxe3 {[%clk 0:00:34.2]} 33. Rxe3 {[%clk
0:00:45.2]} 33... f5 {[%clk 0:00:34.6]} 34. Bb6 {[%clk 0:00:42.4]} 34... Re6
{[%clk 0:00:34.4]} 35. Bd4 {[%clk 0:00:42.9]} 35... Rd8 {[%clk 0:00:35.1]} 36.
b4 {[%clk 0:00:43.3]} 36... Bd5 {[%clk 0:00:32]} 37. a4 {[%clk 0:00:43.8]} 37...
h6 {[%clk 0:00:31.7]} 38. b5 {[%clk 0:00:42.2]} 38... axb5 {[%clk 0:00:31.7]}
39. axb5 {[%clk 0:00:42.6]} 39... Rb8 {[%clk 0:00:32.4]} 40. b6 {[%clk
0:00:43.4]} 40... Rexb6+ {[%clk 0:00:31.9]} 41. Bxb6 {[%clk 0:00:43.5]} 41...
Rxb6+ {[%clk 0:00:32.7]} 42. Kc2 {[%clk 0:00:44.7]} 42... Ke6 {[%clk 0:00:32.6]}
43. Re1 {[%clk 0:00:43.3]} 43... Ra6 {[%clk 0:00:27.6]} 44. Rb1 {[%clk
0:00:36.1]} 44... Ra2+ {[%clk 0:00:28.2]} 45. Kd1 {[%clk 0:00:36.8]} 45... Rxf2
{[%clk 0:00:27.9]} 46. Rb6+ {[%clk 0:00:37.5]} 46... Kf7 {[%clk 0:00:27.1]} 47.
Rd6 {[%clk 0:00:38.2]} 47... Be6 {[%clk 0:00:27.7]} 48. Ra6 {[%clk 0:00:36.2]}
48... Rg2 {[%clk 0:00:27.7]} 49. Ra7+ {[%clk 0:00:35.3]} 49... Kf6 {[%clk
0:00:28.1]} 0-1

[Event "*** Titled Tuesday 3|2 Blitz"]
[Site "Chess.com"]
[Date "2015.10.06"]
[Round "6"]
[White "pKiLz5Rn9b"]
[Black "facu57"]
[Result "0-1"]
[WhiteElo "2396"]
[BlackElo "2487"]
[TimeControl "180+2"]
[EndTime "12:15:12 PDT"]
[Termination "facu57 won by resignation"]

1. e4 {[%clk 0:02:32.2]} 1... e5 {[%clk 0:02:59.7]} 2. Nf3 {[%clk 0:02:32.7]}
2... Nc6 {[%clk 0:03:00.4]} 3. Bc4 {[%clk 0:02:32.9]} 3... Nf6 {[%clk
0:03:00.6]} 4. d3 {[%clk 0:02:30.4]} 4... Be7 {[%clk 0:03:00.1]} 5. O-O {[%clk
0:02:26]} 5... O-O {[%clk 0:03:01.4]} 6. Re1 {[%clk 0:02:26.1]} 6... d6 {[%clk
0:03:02.8]} 7. a4 {[%clk 0:02:26]} 7... Be6 {[%clk 0:03:01.6]} 8. Nc3 {[%clk
0:02:25]} 8... Nd7 {[%clk 0:02:56.8]} 9. Nd5 {[%clk 0:02:13.6]} 9... Nb6 {[%clk
0:02:57.5]} 10. b3 {[%clk 0:01:59.9]} 10... Nxc4 {[%clk 0:02:53]} 11. bxc4
{[%clk 0:02:00.7]} 11... h6 {[%clk 0:02:52.1]} 12. Be3 {[%clk 0:01:48.3]} 12...
f5 {[%clk 0:02:41]} 13. exf5 {[%clk 0:01:47.9]} 13... Bxf5 {[%clk 0:02:33.3]}
14. Nd2 {[%clk 0:01:48]} 14... Bg5 {[%clk 0:02:17.5]} 15. Ne4 {[%clk 0:01:46.3]}
15... Bxe3 {[%clk 0:02:08.2]} 16. Rxe3 {[%clk 0:01:48.2]} 16... Rf7 {[%clk
0:02:03.3]} 17. Qd2 {[%clk 0:01:27.3]} 17... Qh4 {[%clk 0:02:02.4]} 18. Rae1
{[%clk 0:01:23.6]} 18... Raf8 {[%clk 0:01:59.5]} 19. f3 {[%clk 0:01:04.8]} 19...
Nd4 {[%clk 0:01:51.5]} 20. c3 {[%clk 0:01:03.8]} 20... Ne6 {[%clk 0:01:50.4]}
21. Qf2 {[%clk 0:00:57.9]} 21... Qd8 {[%clk 0:01:46.6]} 22. Qg3 {[%clk
0:00:40.8]} 22... c6 {[%clk 0:01:41.3]} 23. Nb4 {[%clk 0:00:42.1]} 23... Nf4
{[%clk 0:01:40.3]} 24. d4 {[%clk 0:00:36.3]} 24... Bxe4 {[%clk 0:01:40.9]} 25.
Rxe4 {[%clk 0:00:32.3]} 25... Rf6 {[%clk 0:01:41.6]} 26. Qh4 {[%clk 0:00:07.6]}
26... a5 {[%clk 0:01:25.9]} 27. Nc2 {[%clk 0:00:08.3]} 27... d5 {[%clk
0:01:10.3]} 28. cxd5 {[%clk 0:00:09]} 28... cxd5 {[%clk 0:01:09.7]} 29. R4e3
{[%clk 0:00:10.2]} 29... Nxg2 {[%clk 0:01:09.7]} 30. Kxg2 {[%clk 0:00:08.7]}
30... Rg6+ {[%clk 0:01:10.1]} 31. Qg3 {[%clk 0:00:10.6]} 31... Rxg3+ {[%clk
0:01:08.9]} 32. hxg3 {[%clk 0:00:12.5]} 32... e4 {[%clk 0:00:48.5]} 33. fxe4
{[%clk 0:00:13.6]} 33... dxe4 {[%clk 0:00:50.4]} 34. Rxe4 {[%clk 0:00:15.5]}
34... Qd5 {[%clk 0:00:51.8]} 35. Re3 {[%clk 0:00:07.8]} 35... Re8 {[%clk
0:00:48.8]} 36. Kf3 {[%clk 0:00:08.3]} 36... Qf5+ {[%clk 0:00:49.8]} 37. Rf4
{[%clk 0:00:08.2]} 37... Qd5+ {[%clk 0:00:47.7]} 38. Kf2 {[%clk 0:00:06.8]}
38... Rxe3 {[%clk 0:00:46.8]} 39. Nxe3 {[%clk 0:00:08.7]} 39... Qa2+ {[%clk
0:00:48.4]} 40. Kf3 {[%clk 0:00:10.3]} 40... Qxa4 {[%clk 0:00:50.2]} 41. d5
{[%clk 0:00:11.9]} 41... Qd7 {[%clk 0:00:48.4]} 42. Rd4 {[%clk 0:00:07.1]} 42...
a4 {[%clk 0:00:49.7]} 43. c4 {[%clk 0:00:06.7]} 43... a3 {[%clk 0:00:50.8]} 44.
d6 {[%clk 0:00:06.7]} 44... a2 {[%clk 0:00:52]} 45. Nc2 {[%clk 0:00:05.7]} 45...
Qf5+ {[%clk 0:00:51.6]} 46. Ke3 {[%clk 0:00:07.3]} 46... Qxc2 {[%clk 0:00:50.4]}
47. d7 {[%clk 0:00:08.9]} 47... Qc3+ {[%clk 0:00:51.3]} 48. Rd3 {[%clk
0:00:08.1]} 48... Qe5+ {[%clk 0:00:50.3]} 49. Kd2 {[%clk 0:00:09.7]} 49... Qg5+
{[%clk 0:00:49.7]} 50. Kc2 {[%clk 0:00:11.2]} 50... a1=Q {[%clk 0:00:51.2]} 0-1

[Event "*** Titled Tuesday 3|2 Blitz"]
[Site "Chess.com"]
[Date "2015.10.06"]
[Round "6"]
[White "ChessTrener"]
[Black "ItalianMachine"]
[Result "1-0"]
[WhiteElo "2483"]
[BlackElo "2222"]
[TimeControl "180+2"]
[EndTime "12:15:15 PDT"]
[Termination "ChessTrener won by resignation"]

1. e4 {[%clk 0:03:01.9]} 1... e5 {[%clk 0:02:58.5]} 2. Nf3 {[%clk 0:02:58.4]}
2... Nc6 {[%clk 0:02:49.5]} 3. Bb5 {[%clk 0:02:59.3]} 3... a6 {[%clk 0:02:39]}
4. Bxc6 {[%clk 0:03:00.2]} 4... dxc6 {[%clk 0:02:40]} 5. Nc3 {[%clk 0:03:02.1]}
5... f6 {[%clk 0:02:41.2]} 6. d4 {[%clk 0:03:03.1]} 6... exd4 {[%clk 0:02:42.1]}
7. Qxd4 {[%clk 0:03:05]} 7... Qxd4 {[%clk 0:02:43]} 8. Nxd4 {[%clk 0:03:06.1]}
8... Bc5 {[%clk 0:02:44.3]} 9. Be3 {[%clk 0:03:07.3]} 9... Ba7 {[%clk
0:02:43.3]} 10. O-O-O {[%clk 0:03:06.4]} 10... Ne7 {[%clk 0:02:42.3]} 11. Rhe1
{[%clk 0:03:04.7]} 11... Bd7 {[%clk 0:02:43.5]} 12. Nf5 {[%clk 0:02:55.7]} 12...
Nxf5 {[%clk 0:02:24.3]} 13. exf5 {[%clk 0:02:47]} 13... Kd8 {[%clk 0:02:16]} 14.
Bxa7 {[%clk 0:02:36.7]} 14... Rxa7 {[%clk 0:02:16.6]} 15. Ne4 {[%clk 0:02:28.4]}
15... b6 {[%clk 0:02:16.6]} 16. g4 {[%clk 0:02:29]} 16... Kc8 {[%clk 0:02:04.7]}
17. Rd3 {[%clk 0:02:28.7]} 17... c5 {[%clk 0:02:00.8]} 18. Nc3 {[%clk
0:02:27.7]} 18... Re8 {[%clk 0:01:58.7]} 19. Rxe8+ {[%clk 0:02:20.1]} 19... Bxe8
{[%clk 0:01:59.8]} 20. Nd5 {[%clk 0:02:21]} 20... Kb7 {[%clk 0:01:53.1]} 21. Re3
{[%clk 0:02:19.9]} 21... Bc6 {[%clk 0:01:51.1]} 22. Nf4 {[%clk 0:02:19.7]} 22...
Ra8 {[%clk 0:01:38.2]} 23. Re7 {[%clk 0:02:19.5]} 23... Bf3 {[%clk 0:01:06.7]}
24. Rxg7 {[%clk 0:02:12.8]} 24... Rd8 {[%clk 0:01:01.5]} 25. b3 {[%clk
0:02:13.9]} 25... Rd1+ {[%clk 0:01:01]} 26. Kb2 {[%clk 0:02:15.1]} 26... Rg1
{[%clk 0:00:59.9]} 27. h3 {[%clk 0:02:06.3]} 27... Rf1 {[%clk 0:00:52.1]} 28.
Nd3 {[%clk 0:02:07.2]} 28... h5 {[%clk 0:00:49.5]} 29. gxh5 {[%clk 0:01:51.6]}
29... Bxh5 {[%clk 0:00:50.4]} 30. Nf4 {[%clk 0:01:31.4]} 30... Bf3 {[%clk
0:00:48.7]} 31. Ne6 {[%clk 0:01:30.9]} 31... Rxf2 {[%clk 0:00:48.7]} 32. Rxc7+
{[%clk 0:01:31.5]} 32... Kb8 {[%clk 0:00:50.2]} 33. Re7 {[%clk 0:01:18.1]} 33...
Bd1 {[%clk 0:00:41]} 34. Nf8 {[%clk 0:01:02.3]} 34... Bxc2 {[%clk 0:00:36.1]}
35. Nd7+ {[%clk 0:01:01.7]} 35... Kc7 {[%clk 0:00:29.8]} 36. Nxf6+ {[%clk
0:00:59.5]} 36... Kc6 {[%clk 0:00:28.6]} 37. Re6+ {[%clk 0:01:00]} 37... Kb5
{[%clk 0:00:20.7]} 38. Ng4 {[%clk 0:00:53.5]} 38... Rd2 {[%clk 0:00:13.2]} 39.
Kc3 {[%clk 0:00:51.8]} 39... Bxf5 {[%clk 0:00:06.9]} 40. Rxb6+ {[%clk
0:00:52.1]} 40... Kxb6 {[%clk 0:00:08.4]} 41. Kxd2 {[%clk 0:00:54]} 41... Bb1
{[%clk 0:00:09.7]} 42. Kc3 {[%clk 0:00:49.2]} 42... Bf5 {[%clk 0:00:09.5]} 43.
Nf2 {[%clk 0:00:46.9]} 43... Kc6 {[%clk 0:00:08.5]} 44. h4 {[%clk 0:00:46.1]}
44... Kd5 {[%clk 0:00:09.5]} 45. Nd3 {[%clk 0:00:47.1]} 45... Bg4 {[%clk
0:00:08.5]} 46. h5 {[%clk 0:00:45.8]} 46... Kd6 {[%clk 0:00:06.6]} 47. h6 {[%clk
0:00:46.1]} 47... Bf5 {[%clk 0:00:08.1]} 48. a4 {[%clk 0:00:46]} 48... a5 {[%clk
0:00:08.3]} 49. Nb2 {[%clk 0:00:46.4]} 49... Kc6 {[%clk 0:00:05.1]} 50. Nc4
{[%clk 0:00:47.3]} 50... Kd5 {[%clk 0:00:06.6]} 51. Ne3+ {[%clk 0:00:47.9]} 1-0

[Event "*** Titled Tuesday 3|2 Blitz"]
[Site "Chess.com"]
[Date "2015.10.06"]
[Round "6"]
[White "dretch"]
[Black "GregShahade"]
[Result "1-0"]
[WhiteElo "2523"]
[BlackElo "2301"]
[TimeControl "180+2"]
[EndTime "12:16:21 PDT"]
[Termination "dretch won by resignation"]

1. d4 {[%clk 0:03:01.9]} 1... Nf6 {[%clk 0:02:59.7]} 2. c4 {[%clk 0:03:02.8]}
2... e6 {[%clk 0:03:00.6]} 3. Nc3 {[%clk 0:03:03.1]} 3... Bb4 {[%clk 0:03:02]}
4. Qc2 {[%clk 0:03:04.4]} 4... O-O {[%clk 0:03:02.6]} 5. a3 {[%clk 0:03:05.5]}
5... Bxc3+ {[%clk 0:03:02.1]} 6. Qxc3 {[%clk 0:03:07.4]} 6... b6 {[%clk
0:03:02.8]} 7. Nf3 {[%clk 0:03:08.1]} 7... Bb7 {[%clk 0:03:01.8]} 8. e3 {[%clk
0:03:09.6]} 8... d6 {[%clk 0:02:59.9]} 9. Be2 {[%clk 0:03:10.5]} 9... Nbd7
{[%clk 0:03:01]} 10. O-O {[%clk 0:03:11.4]} 10... c5 {[%clk 0:02:53.2]} 11. b4
{[%clk 0:03:11.8]} 11... Rc8 {[%clk 0:02:52.6]} 12. Bb2 {[%clk 0:03:12.9]} 12...
Qe7 {[%clk 0:02:51.5]} 13. Rfd1 {[%clk 0:03:07.3]} 13... d5 {[%clk 0:02:46.1]}
14. dxc5 {[%clk 0:03:06]} 14... bxc5 {[%clk 0:02:44.8]} 15. b5 {[%clk 0:03:05]}
15... Nb6 {[%clk 0:02:37.5]} 16. a4 {[%clk 0:03:05.8]} 16... dxc4 {[%clk
0:02:34.7]} 17. a5 {[%clk 0:03:06]} 17... Nbd5 {[%clk 0:02:33.1]} 18. Qxc4
{[%clk 0:03:07.4]} 18... Rfd8 {[%clk 0:02:30.6]} 19. Ne5 {[%clk 0:02:59.8]}
19... h6 {[%clk 0:02:18.5]} 20. Bf3 {[%clk 0:02:59]} 20... Nd7 {[%clk
0:02:04.8]} 21. Nxd7 {[%clk 0:02:48.5]} 21... Rxd7 {[%clk 0:02:01.7]} 22. h3
{[%clk 0:02:45.5]} 22... Qg5 {[%clk 0:01:54]} 23. h4 {[%clk 0:02:27.8]} 23...
Qg6 {[%clk 0:01:39.8]} 24. Kh2 {[%clk 0:02:05.1]} 24... Rdc7 {[%clk 0:01:02.4]}
25. Be5 {[%clk 0:01:54.1]} 25... Re7 {[%clk 0:00:59.7]} 26. Bg3 {[%clk
0:01:52.5]} 26... Nf6 {[%clk 0:00:49.7]} 27. Bxb7 {[%clk 0:01:48]} 27... Rxb7
{[%clk 0:00:51.3]} 28. a6 {[%clk 0:01:49.5]} 28... Re7 {[%clk 0:00:36.3]} 29.
Kg1 {[%clk 0:01:31.5]} 29... Nd5 {[%clk 0:00:29.4]} 30. Rac1 {[%clk 0:01:21.5]}
30... Nxe3 {[%clk 0:00:27.2]} 31. fxe3 {[%clk 0:00:53.2]} 31... Qxg3 {[%clk
0:00:28.2]} 32. Rd3 {[%clk 0:00:53.2]} 32... e5 {[%clk 0:00:15.9]} 33. Qe4
{[%clk 0:00:53.2]} 33... c4 {[%clk 0:00:12.5]} 34. Rxc4 {[%clk 0:00:52.3]} 34...
Rce8 {[%clk 0:00:08]} 35. Rdc3 {[%clk 0:00:44.9]} 35... g6 {[%clk 0:00:07.6]}
36. Rc1 {[%clk 0:00:38.1]} 36... Rd8 {[%clk 0:00:07.1]} 37. R4c2 {[%clk
0:00:31]} 37... Kg7 {[%clk 0:00:06.9]} 38. Rf2 {[%clk 0:00:31.2]} 38... f5
{[%clk 0:00:05.8]} 39. Qb4 {[%clk 0:00:30.8]} 39... Red7 {[%clk 0:00:04.8]} 40.
Re1 {[%clk 0:00:24.9]} 40... Rd1 {[%clk 0:00:04.7]} 41. Rff1 {[%clk 0:00:23.1]}
41... Rxe1 {[%clk 0:00:05.3]} 42. Rxe1 {[%clk 0:00:15.4]} 42... Rd7 {[%clk
0:00:06.6]} 43. Qc3 {[%clk 0:00:13.8]} 43... Kh7 {[%clk 0:00:06.4]} 44. Rb1
{[%clk 0:00:12.6]} 44... f4 {[%clk 0:00:07.3]} 45. Qxe5 {[%clk 0:00:10.5]} 45...
Rd2 {[%clk 0:00:08.9]} 46. Qc7+ {[%clk 0:00:05.5]} 46... Kg8 {[%clk 0:00:09.5]}
47. Qc8+ {[%clk 0:00:07.1]} 47... Kh7 {[%clk 0:00:10.3]} 48. Qb7+ {[%clk
0:00:09]} 48... Kg8 {[%clk 0:00:11.3]} 49. Qf3 {[%clk 0:00:10.7]} 49... Qxh4
{[%clk 0:00:09.9]} 50. exf4 {[%clk 0:00:10.7]} 50... Qe7 {[%clk 0:00:09.8]} 51.
Qb3+ {[%clk 0:00:11.2]} 51... Kh7 {[%clk 0:00:10.4]} 52. Qc3 {[%clk 0:00:12.6]}
52... Qe2 {[%clk 0:00:11.1]} 53. Qc7+ {[%clk 0:00:12.3]} 53... Kg8 {[%clk
0:00:11.5]} 54. Qb8+ {[%clk 0:00:13.7]} 54... Kg7 {[%clk 0:00:12.2]} 55. Qxa7+
{[%clk 0:00:15.6]} 55... Kf6 {[%clk 0:00:13.7]} 56. Qb6+ {[%clk 0:00:15.6]}
56... Kf5 {[%clk 0:00:14.6]} 57. Qc5+ {[%clk 0:00:16.6]} 57... Kg4 {[%clk
0:00:15.7]} 58. Qc8+ {[%clk 0:00:18]} 58... Kxf4 {[%clk 0:00:14.2]} 59. Rf1+
{[%clk 0:00:19.1]} 59... Ke3 {[%clk 0:00:14.4]} 60. Qe6+ {[%clk 0:00:19.6]}
60... Kd4 {[%clk 0:00:15.2]} 61. Qxe2 {[%clk 0:00:18.8]} 61... Rxe2 {[%clk
0:00:17.1]} 62. a7 {[%clk 0:00:20.3]} 62... Ra2 {[%clk 0:00:18.2]} 63. b6 {[%clk
0:00:21.9]} 63... Kc5 {[%clk 0:00:20.1]} 64. b7 {[%clk 0:00:23.3]} 1-0